bitfinex/quotes_SOLUSD_20251013
["timestamp","ask_amount","ask_price","bid_price","bid_amount"]
[1760378425005,0.1,206.22,206.05,13.0]
[1760378425229,6.92034181,206.11,205.77,0.48597949]
[1760378425531,19.99999999,206.17,206.02,6.92034181]
[1760378425737,6.92034181,206.18,206.05,6.92034181]
[1760378425909,4.94931694,206.22,206.05,0.48531909]
[1760378425910,19.99999999,206.17,206.05,0.48531909]
[1760378426108,6.92034181,206.19,205.81,14.84]
[1760378426311,6.92034181,206.1,205.82,0.24319009]
[1760378426521,6.92034181,206.04,205.88,6.92034181]
[1760378426730,6.92034181,206.01,205.89,0.24329598]
[1760378427032,0.68,206.13,205.86,0.24337858]
[1760378427033,19.99999999,206.0,205.86,0.24337858]
[1760378427330,6.92034181,205.93,205.87,0.24374394]
[1760378427531,6.92034181,205.9,205.77,0.24374394]
[1760378427834,6.92034181,205.9,205.7,17.01507048]
[1760378427835,6.92034181,205.8,205.59,28.98472652]
[1760378428017,6.92034181,205.8,205.37,0.05]
[1760378428018,19.99999999,205.82,205.6,0.24489019]
[1760378428229,20.0,205.99,205.72,6.92034181]
[1760378428230,6.92034181,205.87,205.72,6.92034181]
[1760378428426,6.92034181,205.84,205.73,0.24426365]
[1760378428731,0.60691396,205.96,205.73,0.24426365]
[1760378428941,6.92034181,205.82,205.73,0.24426365]
[1760378429117,0.60685503,205.98,205.67,0.24435803]
[1760378429118,6.92034181,205.79,205.67,0.24435803]
[1760378429309,6.92034181,205.73,205.67,0.24435803]
[1760378429510,6.92034181,205.7,205.6,0.24478338]
[1760378429735,6.92034181,205.67,205.51,6.92034181]
[1760378429930,0.60723828,205.85,205.52,0.24551719]
[1760378430141,0.60723828,205.85,205.45,17.03577512]
[1760378430142,6.92034181,205.61,205.45,4.86736432]
[1760378430439,0.68,205.73,205.45,17.03577512]
[1760378430742,6.92034181,205.61,205.46,0.24583653]
[1760378430960,4.86114766,205.72,205.51,6.92034181]
[1760378431252,4.86114766,205.72,205.45,4.86736432]
[1760378431253,6.92034181,205.68,205.55,6.92034181]
[1760378431407,6.92034181,205.64,205.56,0.24531558]
[1760378431609,6.92034181,205.7,205.56,0.24531558]
[1760378431811,6.92034181,205.68,205.56,0.24531558]
[1760378432240,19.90034181,205.67,205.59,20.8]
[1760378432441,0.68,205.73,205.59,25.66389787]
[1760378432645,6.92034181,205.68,205.6,0.24519704]
[1760378432848,6.92034181,205.68,205.47,0.5]
[1760378432849,6.92034181,205.66,205.56,20.8]
[1760378433141,4.8603795,205.75,205.6,27.72034181]
[1760378433344,10.87647521,205.82,205.53,17.02902052]
[1760378433345,6.92034181,205.98,205.76,10.87647521]
[1760378433544,16.98204754,206.1,205.91,6.92034181]
[1760378433724,6.92034181,205.99,205.77,19.99999999]
[1760378434044,6.92034181,205.97,205.84,6.92034181]
[1760378434235,6.92034181,205.95,205.79,4.85918521]
[1760378434563,17.53256977,206.21,205.88,2.04315129]
[1760378434846,17.9568487,206.13,205.92,6.92034181]
[1760378435017,24.87719051,206.02,205.89,6.92034181]
[1760378435216,6.92034181,205.98,205.9,0.243567]
[1760378435438,6.92034181,205.92,205.82,14.65693991]
[1760378435623,6.92034181,205.83,205.77,4.85965339]
[1760378435833,6.92034181,205.83,205.41,24.69233809]
[1760378435834,6.92034181,205.8,205.78,0.24418071]
[1760378436042,6.92034181,205.79,205.72,0.2442279]
[1760378436246,6.92034181,205.76,205.72,0.7442279]
[1760378436535,6.92034181,205.76,205.72,0.2442279]
[1760378436727,6.92034181,205.74,205.57,4.86452303]
[1760378436935,6.92034181,205.74,205.58,0.24512665]
[1760378437134,6.92034181,205.65,205.58,0.24512665]
[1760378437329,0.60729728,205.83,205.58,0.24512665]
[1760378437330,13.1,205.69,205.58,0.24512665]
[1760378437537,6.92034181,205.63,205.6,20.8]
[1760378437744,6.92034181,205.65,205.61,0.24527953]
[1760378437933,13.1,205.68,205.61,0.24527953]
[1760378438132,13.06,205.68,205.61,0.24527953]
[1760378438347,20.8,205.82,205.61,0.24527953]
[1760378438348,6.92034181,205.64,205.61,5.10880957]
[1760378438725,17.9568487,205.81,205.64,20.8]
[1760378438933,6.92034181,205.72,205.65,0.24468905]
[1760378439138,6.92034181,205.73,205.65,0.24468905]
[1760378439338,6.92034181,205.72,205.65,0.24468905]
[1760378439568,6.92034181,205.68,205.65,0.24468905]
[1760378439725,6.92034181,205.72,205.65,0.24468905]
[1760378440065,13.04,205.75,205.65,0.24468905]
[1760378440223,6.92034181,205.69,205.66,4.86239424]
[1760378440629,10.87647521,205.84,205.65,0.24468905]
[1760378440630,17.9568487,205.76,205.67,0.24492482]
[1760378440931,6.92034181,205.73,205.67,0.24492482]
[1760378441140,13.02,205.75,205.67,0.24492482]
[1760378441141,19.92034181,205.75,205.67,0.74492482]
[1760378441331,6.92034181,205.69,205.67,0.5]
[1760378441531,6.92034181,205.69,205.57,17.0253654]
[1760378441833,6.92034181,205.65,205.58,0.24524473]
[1760378442032,17.9568487,205.66,205.49,6.92034181]
[1760378442236,6.92034181,205.64,205.54,4.86523304]
[1760378442567,6.92034181,205.62,205.55,0.24544557]
[1760378442762,6.92034181,205.6,205.53,4.86535858]
[1760378442938,12.96,205.61,205.53,17.27462049]
[1760378443131,17.9568487,205.68,205.53,5.11094609]
[1760378443354,6.92034181,205.72,205.62,6.92034181]
[1760378443557,6.92034181,205.72,205.53,4.86535858]
[1760378443558,17.9568487,205.81,205.69,20.8]
[1760378443744,6.92034181,205.72,205.62,6.92034181]
[1760378443939,19.88034181,205.72,205.65,20.8]
[1760378444249,18.6368487,205.76,205.69,20.8]
[1760378444451,18.6368487,205.76,205.67,4.86215782]
[1760378444452,19.86034181,205.75,205.7,0.24462958]
[1760378444636,30.8968487,205.75,205.66,20.8]
[1760378444829,4.85853076,205.83,205.7,6.92034181]
[1760378444830,6.92034181,205.79,205.7,6.92034181]
[1760378445030,6.92034181,205.72,205.41,2.04315129]
[1760378445338,6.92034181,205.51,205.41,17.03909254]
[1760378445533,6.92034181,205.48,205.37,6.92034181]
[1760378445732,17.9568487,205.53,205.25,2.04315129]
[1760378445733,12.92,205.49,205.4,19.48774738]
[1760378446039,12.9,205.48,205.4,11.78878462]
[1760378446247,6.92034181,205.47,205.4,4.86844281]
[1760378446564,17.9568487,205.57,205.41,0.24641724]
[1760378446868,17.9568487,205.57,205.37,17.04241124]
[1760378446869,17.9568487,205.53,205.44,0.2]
[1760378447169,17.9568487,205.41,205.29,4.87115787]
[1760378447364,0.68,205.52,205.4,6.92034181]
[1760378447664,0.68,205.52,205.41,0.24622714]
[1760378447961,17.9568487,205.58,205.41,0.24622714]
[1760378448162,12.9,205.57,205.41,2.28937843]
[1760378448347,0.68,205.63,205.45,20.8]
[1760378448551,6.92034181,205.6,205.54,20.8]
[1760378448771,12.9,205.59,205.55,0.24554001]
[1760378449059,12.88,205.58,205.54,20.8]
[1760378449238,12.88,205.58,205.48,0.24554001]
[1760378449239,12.88,205.57,205.48,0.24554001]
[1760378449445,6.92034181,205.57,205.48,0.24554001]
[1760378449643,6.92034181,205.57,205.42,41.37863887]
[1760378449644,6.92034181,205.53,205.43,0.24589605]
[1760378449944,0.66,205.54,205.44,0.24609669]
[1760378450144,0.66,205.54,205.44,6.92034181]
[1760378450382,0.66,205.54,205.45,4.86736432]
[1760378450564,24.87719051,205.5,205.28,14.18867788]
[1760378450745,17.9568487,205.48,205.4,6.92034181]
[1760378450946,17.9568487,205.48,205.31,36.53012517]
[1760378450947,6.92034181,205.45,205.41,0.24632164]
[1760378451247,24.87719051,205.45,205.32,0.24636892]
[1760378451447,6.92034181,205.43,205.32,0.24636892]
[1760378451673,6.92034181,205.41,205.33,6.92034181]
[1760378452162,6.92034181,205.41,205.34,0.24676049]
[1760378452362,12.82,205.4,205.34,0.24676049]
[1760378452671,0.60812454,205.55,205.39,6.92034181]
[1760378452871,6.92034181,205.59,205.53,20.8]
[1760378453038,6.92034181,205.56,205.53,21.04561113]
[1760378453341,6.92034181,205.58,205.53,20.8]
[1760378453541,6.92034181,205.54,205.41,6.92034181]
[1760378453743,6.92034181,205.48,205.44,20.8]
[1760378453942,13.48,205.47,205.44,20.8]
[1760378454146,7.58034181,205.46,205.4,0.24626275]
[1760378454344,6.92034181,205.44,205.35,17.04407108]
[1760378454579,6.92034181,205.44,205.37,4.86926035]
[1760378454779,6.92034181,205.42,205.36,0.2465943]
[1760378454964,12.8,205.41,205.36,0.2465943]
[1760378455148,12.8,205.41,205.16,19.99999999]
[1760378455149,11.48504385,205.4,205.17,6.92034181]
[1760378455343,11.48504385,205.4,204.91,122.47257534]
[1760378455344,6.92034181,205.35,205.25,6.92034181]
[1760378455546,0.66,205.34,205.25,6.92034181]
[1760378455883,6.92034181,205.32,205.23,6.92034181]
[1760378456052,6.92034181,205.3,205.19,6.92034181]
[1760378456253,6.92034181,205.29,205.21,6.92034181]
[1760378456473,0.66,205.31,205.24,6.92034181]
[1760378456787,0.66,205.31,205.23,6.92034181]
[1760378456949,0.66,205.4,205.3,20.8]
[1760378457150,0.66,205.4,205.3,6.92034181]
[1760378457349,6.92034181,205.31,205.09,85.82475982]
[1760378457550,6.92034181,205.31,205.09,65.82475983]
[1760378457784,6.92034181,205.27,205.09,41.44521915]
[1760378457976,0.60859827,205.39,205.09,17.06567847]
[1760378457977,0.66,205.26,205.09,17.06567847]
[1760378458149,6.92034181,205.21,205.09,17.06567847]
[1760378458656,0.66,205.2,205.07,6.92034181]
[1760378458867,10.87647521,205.26,205.11,6.92034181]
[1760378459062,6.92034181,205.28,205.2,6.92034181]
[1760378459259,0.66,205.31,205.23,6.92034181]
[1760378459449,6.92034181,205.28,205.2,20.8]
[1760378459956,6.92034181,205.21,205.01,17.07233792]
[1760378460152,0.66,205.41,205.2,13.84068362]
[1760378460352,0.66,205.41,205.2,0.5]
[1760378460553,0.66,205.4,205.16,4.92455381]
[1760378460769,13.46,205.39,205.15,17.06068729]
[1760378461004,13.46,205.38,205.15,4.87448208]
[1760378461285,6.92034181,205.2,205.11,6.92034181]
[1760378461487,6.92034181,205.17,205.09,6.92034181]
[1760378461690,6.92034181,205.13,205.04,6.92034181]
[1760378461999,0.66,205.14,205.04,6.92034181]
[1760378462292,0.66,205.22,205.1,6.92034181]
[1760378462503,12.78,205.21,205.01,17.0721445]
[1760378462783,6.92034181,205.13,205.01,17.0721445]
[1760378463080,0.60907274,205.23,205.06,6.92034181]
[1760378463293,0.66,205.19,205.13,6.92034181]
[1760378463801,0.66,205.22,205.13,6.92034181]
[1760378463998,0.66,205.22,205.17,6.92034181]
[1760378464284,0.66,205.36,205.21,6.92034181]
[1760378464462,0.66,205.49,205.35,6.92034181]
[1760378464661,6.92034181,205.47,205.33,20.8]
[1760378464864,6.92034181,205.47,205.3,17.0482221]
[1760378464865,12.78,205.46,205.3,17.0482221]
[1760378465180,1.26842054,205.45,205.33,6.92034181]
[1760378465380,7.58034181,205.52,205.34,20.8]
[1760378465582,48.436081,206.46,205.35,0.5]
[1760378465583,0.66,205.59,205.35,0.5]
[1760378465758,0.66,205.59,205.38,20.8]
[1760378465961,6.92034181,205.55,205.44,6.92034181]
[1760378466169,0.66,205.54,205.48,6.92034181]
[1760378466465,13.46,205.54,205.47,6.92034181]
[1760378466668,0.66,205.54,205.46,6.92034181]
[1760378466982,4.86239424,205.66,205.5,6.92034181]
[1760378467199,6.92034181,205.52,205.26,0.5]
[1760378467366,6.92034181,205.43,205.24,17.053206]
[1760378467567,6.92034181,205.39,205.24,17.053206]
[1760378467866,12.78,205.38,205.32,6.92034181]
[1760378468071,0.66,205.42,205.33,6.92034181]
[1760378468271,0.66,205.46,205.37,6.92034181]
[1760378468474,24.23918799,205.63,205.24,17.053206]
[1760378468475,6.92034181,205.38,205.24,4.87234457]
[1760378468668,6.92034181,205.36,205.27,4.87163248]
[1760378468867,12.78,205.35,205.26,6.92034181]
[1760378469067,6.92034181,205.32,205.2,0.2]
[1760378469276,6.92034181,205.3,205.2,7.12034181]
[1760378469463,6.92034181,205.27,205.2,0.2]
[1760378469672,6.92034181,205.23,205.2,0.2]
[1760378469898,6.92034181,205.23,204.93,6.92034181]
[1760378469899,10.87647521,205.2,205.01,4.87781083]
[1760378470194,0.66,205.19,205.11,6.92034181]
[1760378470394,0.66,205.19,205.08,0.7]
[1760378470567,12.74,205.29,205.17,6.92034181]
[1760378470872,0.66,205.31,205.18,6.92034181]
[1760378470873,6.92034181,205.26,205.18,6.92034181]
[1760378471062,0.66,205.28,205.12,4.875195]
[1760378471063,0.66,205.28,205.12,17.06318251]
[1760378471262,12.72,205.27,205.18,6.92034181]
[1760378471463,6.92034181,205.27,205.12,17.06318251]
[1760378471663,12.72,205.3,205.2,6.92034181]
[1760378471865,12.14536994,205.29,205.12,4.875195]
[1760378472090,6.92034181,205.23,205.12,4.875195]
[1760378472294,0.66,205.29,205.21,6.92034181]
[1760378472499,6.92034181,205.28,205.15,20.8]
[1760378472661,0.66,205.29,205.15,20.8]
[1760378472662,12.7,205.27,205.15,20.8]
[1760378472866,6.92034181,205.24,205.15,6.92034181]
[1760378473094,0.60877611,205.33,205.22,6.92034181]
[1760378473270,48.40853607,206.58,205.23,21.5]
[1760378473271,0.66,205.44,205.23,21.5]
[1760378473467,6.10695588,205.42,205.23,0.7]
[1760378473685,6.10695588,205.42,205.33,6.10695588]
[1760378473872,6.10695588,205.4,205.23,0.7]
[1760378474068,6.10695588,205.33,205.15,0.7]
[1760378474371,6.10695588,205.29,205.12,5.37233159]
[1760378474570,6.10695588,205.27,205.17,6.10695588]
[1760378474773,6.10695588,205.25,205.15,6.10695588]
[1760378474977,10.87647521,205.25,205.1,17.06484641]
[1760378475166,18.78695588,205.24,205.15,6.10695588]
[1760378475371,0.66,205.23,205.13,6.10695588]
[1760378475591,6.10695588,205.22,205.13,6.10695588]
[1760378475791,6.10695588,205.22,205.12,6.10695588]
[1760378476179,6.10695588,205.2,205.12,6.10695588]
[1760378476488,6.10695588,205.18,205.11,6.10695588]
[1760378476691,6.10695588,205.2,205.12,4.875195]
[1760378476893,12.64,205.21,205.15,6.10695588]
[1760378477073,18.74695588,205.21,205.1,4.87547572]
[1760378477267,6.10695588,205.21,205.13,6.10695588]
[1760378477466,6.10695588,205.17,205.08,4.87604025]
[1760378477693,6.10695588,205.12,205.08,4.87604025]
[1760378477990,6.10695588,205.12,205.04,4.87704873]
[1760378478194,6.10695588,205.09,205.02,10.98440678]
[1760378478379,6.10695588,205.09,205.01,6.10695588]
[1760378478577,0.60916179,205.2,205.0,38.07299173]
[1760378478578,0.66,205.16,205.0,38.07299173]
[1760378478882,6.10695588,205.1,205.04,4.87709715]
[1760378479285,0.66,205.09,205.0,0.2]
[1760378479484,6.10695588,205.01,205.0,0.2]
[1760378479791,6.76695588,205.01,204.94,5.07941172]
[1760378480006,13.24,205.01,204.94,0.2]
[1760378480196,24.0662313,205.0,204.94,0.2]
[1760378480504,0.66,205.01,204.94,0.2]
[1760378480873,44.3735985,205.14,204.94,0.2]
[1760378480874,6.10695588,205.03,204.96,6.10695588]
[1760378481116,0.66,205.03,204.96,0.7]
[1760378481278,10.87647521,205.01,204.94,0.2]
[1760378481477,1.26975609,205.0,204.94,0.2]
[1760378482575,20.8,204.93,204.8,0.29607388]
[1760378482782,6.10695588,204.82,204.8,0.29607388]
[1760378483205,6.10695588,204.82,204.72,2.4364097]
[1760378483506,20.8,204.86,204.72,2.4364097]
[1760378483507,0.61032176,204.81,204.72,2.4364097]
[1760378483817,10.87647521,204.8,204.72,2.4364097]
[1760378483986,6.71733724,204.79,204.72,2.4364097]
[1760378484301,10.87647521,204.79,204.72,2.4364097]
[1760378484509,6.10695588,204.76,204.72,2.4364097]
[1760378485390,6.71745649,204.75,204.72,2.4364097]
[1760378485603,16.98343109,204.73,204.72,2.1664097]
[1760378485922,20.8,204.8,204.72,2.1664097]
[1760378485923,0.61038136,204.79,204.72,2.1664097]
[1760378486083,10.87647521,204.83,204.72,8.27336558]
[1760378486296,10.87647521,204.77,204.72,2.1664097]
[1760378486485,0.61044098,204.77,204.72,2.1664097]
[1760378486706,6.71736705,204.78,204.72,2.1664097]
[1760378487005,10.87647521,204.81,204.72,2.1664097]
[1760378487311,10.87647521,204.79,204.72,2.1664097]
[1760378487605,31.67647521,204.73,204.72,2.1664097]
[1760378487786,32.28703546,204.73,204.72,2.1664097]
[1760378487983,6.10695588,204.76,204.72,2.1664097]
[1760378488183,31.67647521,204.78,204.72,2.1664097]
[1760378488184,16.98343109,204.74,204.72,2.1664097]
[1760378488404,0.61056025,204.73,204.72,2.1664097]
[1760378488603,20.8,204.78,204.72,2.1664097]
[1760378488604,6.10695588,204.77,204.72,2.1664097]
[1760378488796,10.87647521,204.77,204.72,2.1664097]
[1760378488981,5.48923198,204.95,204.76,6.10695588]
[1760378489182,6.10695588,204.92,204.81,6.10695588]
[1760378489382,5.48934157,204.95,204.72,19.2629061]
[1760378489383,6.10695588,204.83,204.72,2.1664097]
[1760378489587,0.61002391,204.91,204.72,2.8264097]
[1760378489890,0.61002391,204.91,204.73,0.66]
[1760378490109,0.61002391,204.91,204.74,6.10695588]
[1760378490110,6.10695588,204.84,204.74,6.10695588]
[1760378490619,6.10695588,204.84,204.72,7.0509971]
[1760378490620,0.60996437,204.93,204.82,6.10695588]
[1760378490912,4.87757291,205.02,204.87,6.10695588]
[1760378491086,6.10695588,204.95,204.83,0.66]
[1760378491283,0.60993461,204.94,204.83,6.76695588]
[1760378491491,0.60993461,204.94,204.83,0.66]
[1760378491713,0.60993461,204.94,204.84,6.10695588]
[1760378492092,0.60993461,204.94,204.83,0.66]
[1760378492289,0.60993461,204.94,204.86,6.10695588]
[1760378492524,0.60984534,204.97,204.85,6.10695588]
[1760378492707,10.87647521,204.96,204.85,6.10695588]
[1760378493009,10.87647521,204.96,204.83,0.66]
[1760378493010,0.60972635,205.01,204.88,6.10695588]
[1760378493194,5.48761229,205.01,204.87,6.10695588]
[1760378493389,5.48761229,205.01,204.86,0.66]
[1760378493390,0.60972635,205.01,204.91,6.10695588]
[1760378493721,10.87647521,204.96,204.86,0.66]
[1760378493887,0.60990485,204.95,204.86,0.66]
[1760378494089,6.10695588,204.89,204.76,6.10695588]
[1760378494386,0.61005368,204.9,204.77,0.66]
[1760378494586,31.67647521,204.89,204.77,0.66]
[1760378494903,31.67647521,204.89,204.77,6.10695588]
[1760378494904,10.87647521,204.86,204.77,6.10695588]
[1760378495106,10.87647521,204.84,204.73,0.66]
[1760378495310,20.8,204.79,204.73,6.10695588]
[1760378495624,31.67647521,204.84,204.78,6.10695588]
[1760378495798,31.67647521,204.84,204.74,0.66]
[1760378495997,31.67647521,204.84,204.78,6.10695588]
[1760378496306,20.8,204.84,204.78,6.10695588]
[1760378496511,20.8,204.85,204.78,6.10695588]
[1760378496707,0.61011323,204.88,204.8,6.10695588]
[1760378496910,16.98343109,204.92,204.8,6.10695588]
[1760378497110,0.60984534,204.97,204.81,0.66]
[1760378497299,30.76671363,205.16,204.86,6.10695588]
[1760378497300,17.0740036,204.99,204.86,6.10695588]
[1760378497614,0.60972635,205.01,204.92,6.10695588]
[1760378497815,6.10695588,204.99,204.87,0.66]
[1760378498018,0.60981559,204.98,204.85,6.10695588]
[1760378498318,10.87647521,204.92,204.8,6.10695588]
[1760378498523,31.67647521,204.9,204.8,6.10695588]
[1760378498705,0.61008345,204.89,204.8,6.10695588]
[1760378498902,4.88090589,204.88,204.8,6.10695588]
[1760378499101,0.61008345,204.89,204.8,6.10695588]
[1760378499309,5.49079204,204.89,204.82,6.10695588]
[1760378499701,25.68050773,204.9,204.84,6.10695588]
[1760378499918,25.68050773,204.9,204.82,6.10695588]
[1760378499919,0.61008345,204.89,204.82,6.10695588]
[1760378500318,31.67647521,204.85,204.75,0.66]
[1760378500517,24.3878844,205.02,204.75,21.46]
[1760378500818,20.8,204.9,204.76,0.66]
[1760378501040,0.61008345,204.89,204.8,6.10695588]
[1760378501193,10.87647521,204.88,204.76,0.66]
[1760378501499,6.71703933,204.89,204.82,6.10695588]
[1760378501500,21.41008345,204.89,204.82,6.10695588]
[1760378501700,10.87647521,204.88,204.8,6.10695588]
[1760378502120,0.60987509,204.96,204.86,6.10695588]
[1760378502417,6.10695588,204.99,204.88,6.10695588]
[1760378502616,0.60981559,204.98,204.88,6.10695588]
[1760378502832,10.87647521,204.97,204.86,6.10695588]
[1760378503003,10.87647521,204.95,204.86,6.10695588]
[1760378503202,10.87647521,204.93,204.84,0.66]
[1760378503422,16.98343109,204.95,204.84,6.76695588]
[1760378503423,10.87647521,204.91,204.84,6.76695588]
[1760378503726,10.87647521,204.89,204.81,6.10695588]
[1760378504039,10.87647521,204.87,204.76,6.10695588]
[1760378504201,61.4696774,204.97,204.8,6.10695588]
[1760378504202,0.6101728,204.86,204.8,6.10695588]
[1760378504403,20.8,204.9,204.72,7.05107241]
[1760378504629,11.48655866,204.89,204.79,6.10695588]
[1760378504802,4.88090589,204.88,204.75,0.66]
[1760378505006,11.48661822,204.87,204.78,6.10695588]
[1760378505222,10.87647521,204.83,204.76,6.10695588]
[1760378505405,0.61029196,204.82,204.76,6.10695588]
[1760378505601,0.61029196,204.82,204.75,0.66]
[1760378505813,0.61029196,204.82,204.76,6.10695588]
[1760378506014,0.61029196,204.82,204.73,6.10695588]
[1760378506306,10.87647521,204.79,204.72,2.1664097]
[1760378506631,10.87647521,204.77,204.72,2.1664097]
[1760378506814,0.61041117,204.78,204.72,2.1664097]
[1760378507010,5.49374532,204.78,204.72,2.1664097]
[1760378507325,0.61038136,204.79,204.74,6.10695588]
[1760378507528,5.49347603,204.79,204.72,8.27336558]
[1760378507827,20.8,204.77,204.72,2.1664097]
[1760378508421,20.8,204.77,204.72,2.8764097]
[1760378508618,20.8,204.77,204.72,2.1664097]
[1760378508928,15.75785761,204.86,204.73,0.71]
[1760378509126,10.87647521,204.84,204.72,2.1664097]
[1760378509319,27.96131362,204.86,204.72,2.1664097]
[1760378509320,10.87647521,204.81,204.72,2.1664097]
[1760378509527,20.8,204.78,204.72,2.1664097]
[1760378509843,21.41044098,204.77,204.72,2.1664097]
[1760378510005,10.87647521,204.76,204.72,2.1664097]
[1760378510205,0.61050061,204.75,204.72,2.1664097]
[1760378510509,10.87647521,204.74,204.72,2.1664097]
[1760378510728,11.48703546,204.73,204.72,2.1664097]
[1760378510929,6.10695588,204.81,204.72,2.1664097]
[1760378511121,31.67647521,204.77,204.72,2.1664097]
[1760378511318,10.87647521,204.75,204.72,2.1664097]
[1760378511518,0.61053042,204.74,204.72,2.1664097]
[1760378511809,10.87647521,204.75,204.72,2.1664097]
[1760378512028,0.61047079,204.76,204.72,2.1664097]
[1760378512226,10.87647521,204.78,204.72,2.1664097]
[1760378512227,6.71745649,204.75,204.72,2.1664097]
[1760378512405,16.98343109,204.73,204.72,2.1664097]
[1760378512735,10.87647521,204.69,204.58,0.68]
[1760378512911,10.87647521,204.67,204.58,0.68]
[1760378513113,10.87647521,204.65,204.58,0.68]
[1760378513519,0.61082877,204.64,204.58,0.68]
[1760378513811,0.61082877,204.64,204.42,63.36874534]
[1760378513812,0.61082877,204.64,204.56,6.10695588]
[1760378514016,21.41082877,204.64,204.56,6.10695588]
[1760378514237,21.41082877,204.64,204.54,6.10695588]
[1760378514533,21.41082877,204.64,204.56,6.10695588]
[1760378514916,4.8871078,204.62,204.53,0.68]
[1760378515124,4.8871078,204.62,204.49,0.68]
[1760378515125,10.87647521,204.6,204.49,0.68]
[1760378515316,10.87647521,204.58,204.5,6.10695588]
[1760378515523,0.61103778,204.57,204.5,6.10695588]
[1760378515723,0.61103778,204.57,204.49,0.68]
[1760378515919,10.87647521,204.56,204.46,6.10695588]
[1760378516131,0.61103778,204.57,204.48,6.10695588]
[1760378516443,0.61103778,204.57,204.49,0.68]
[1760378516937,10.87647521,204.61,204.55,6.10695588]
[1760378517145,11.48739354,204.61,204.53,6.10695588]
[1760378517439,6.10695588,204.6,204.49,6.10695588]
[1760378517645,32.28739354,204.61,204.44,4.89140548]
[1760378517646,20.8,204.61,204.53,6.10695588]
[1760378517822,12.21566303,204.66,204.57,6.10695588]
[1760378518027,11.48727413,204.65,204.57,6.10695588]
[1760378518444,11.48727413,204.65,204.47,26.90695588]
[1760378518445,0.61059007,204.72,204.58,0.68]
[1760378518626,4.88424596,204.74,204.67,6.10695588]
[1760378518627,5.49477638,204.74,204.67,6.10695588]
[1760378518825,26.90695588,204.71,204.61,6.10695588]
[1760378519135,20.8,204.68,204.59,6.78695588]
[1760378519336,0.61073923,204.67,204.59,0.68]
[1760378519541,0.61073923,204.67,204.6,6.10695588]
[1760378519745,0.61073923,204.67,204.51,6.10695588]
[1760378519746,6.10695588,204.61,204.51,6.10695588]
[1760378519943,10.87647521,204.59,204.51,0.68]
[1760378520144,0.61100791,204.58,204.51,0.68]
[1760378520320,10.87647521,204.63,204.56,6.10695588]
[1760378520635,20.8,204.64,204.6,6.10695588]
[1760378520832,20.8,204.64,204.55,0.68]
[1760378521052,0.61073923,204.67,204.6,6.10695588]
[1760378521215,20.8,204.66,204.62,6.10695588]
[1760378521417,4.88514087,204.71,204.64,6.10695588]
[1760378521617,5.49428092,204.76,204.68,6.10695588]
[1760378522143,6.10695588,204.8,204.69,0.68]
[1760378522346,0.61041117,204.78,204.69,6.78695588]
[1760378522644,20.8,204.79,204.71,6.10695588]
[1760378522852,20.8,204.79,204.69,0.68]
[1760378523165,20.8,204.73,204.64,0.68]
[1760378523449,20.8,204.69,204.61,6.10695588]
[1760378523746,11.48303441,204.68,204.61,6.10695588]
[1760378524121,20.8,204.74,204.61,6.10695588]
[1760378524322,0.61056025,204.73,204.67,6.10695588]
[1760378524634,4.88314396,204.79,204.71,6.10695588]
[1760378524831,0.61041117,204.78,204.71,6.10695588]
[1760378525053,10.87647521,204.77,204.68,0.68]
[1760378525346,10.87647521,204.77,204.7,6.10695588]
[1760378525544,0.61032176,204.81,204.72,6.10695588]
[1760378525751,5.49294913,204.81,204.63,0.68]
[1760378525955,5.49294913,204.81,204.72,6.10695588]
[1760378526165,0.61032176,204.81,204.74,6.10695588]
[1760378526323,6.10695588,204.84,204.66,0.68]
[1760378526324,6.10695588,204.8,204.66,0.68]
[1760378526523,4.8823357,204.82,204.66,0.68]
[1760378526524,10.87647521,204.77,204.68,6.10695588]
[1760378526723,20.8,204.79,204.7,6.10695588]
[1760378526965,0.61011323,204.88,204.78,6.10695588]
[1760378527125,0.60951823,205.08,204.87,6.10695588]
[1760378527448,19.99999999,205.17,205.03,6.10695588]
[1760378527449,6.10695588,205.13,205.03,6.10695588]
[1760378527654,0.60939937,205.12,205.02,6.10695588]
[1760378527863,0.2,205.24,205.04,6.10695588]
[1760378528026,17.66310967,205.23,205.14,6.10695588]
[1760378528225,17.66310967,205.23,205.16,6.10695588]
[1760378528563,17.66310967,205.23,204.94,23.98160189]
[1760378528564,11.5886106,205.23,205.14,6.10695588]
[1760378528728,6.10695588,205.15,205.07,0.68]
[1760378528928,18.28959805,205.21,205.07,0.68]